fUSD/lending_fUSD_20240530
["ID","MTS","AMOUNT","RATE_DAILY","PERIOD"]
[328229364,1717078237541,-1000.0,0.00033298,4]
[328229366,1717078237551,-155.63318012,0.00033298,4]
[328229368,1717078237561,-328.16762676,0.00033298,4]
[328229370,1717078237571,-266.92549375,0.00033298,4]
[328229372,1717078237581,-1278.70750154,0.00033298,4]
[328229374,1717078237590,-157.24740082,0.00033298,4]
[328229376,1717078237600,-214.89892502,0.00033298,4]
[328229378,1717078237610,-278.07869868,0.00033298,4]
[328229380,1717078237619,-1382.70872343,0.00033298,4]
[328229382,1717078237629,-168.29483398,0.00033298,4]
[328229384,1717078237638,-210.39913373,0.00033298,4]
[328229386,1717078237648,-3288.60966713,0.00033298,4]
[328229388,1717078237659,-4020.65057636,0.00033298,2]
[328229390,1717078237668,-1996.91763044,0.00033298,4]
[328229392,1717078237677,-1796.93110706,0.00033298,4]
[328229394,1717078237687,-155.81695383,0.00033298,4]
[328229396,1717078237696,-234.25383046,0.00033298,4]
[328229399,1717078237706,-156.82193563,0.00033298,4]
[328229402,1717078237715,-155.28517667,0.00033298,4]
[328229405,1717078237725,-156.27696473,0.00033298,4]
[328229407,1717078237735,-281.88330445,0.00033298,4]
[328229409,1717078237745,-325.92527991,0.00033298,4]
[328229411,1717078237754,-623.47628621,0.00033298,4]
[328229413,1717078237763,-155.67198523,0.00033298,4]
[328229415,1717078237772,-155.0,0.00033298,4]
[328229417,1717078237781,-1258.86655938,0.00033298,4]
[328229419,1717078237790,-2814.6457293,0.00033298,4]
[328229421,1717078237800,-326.10422737,0.00033298,4]
[328229423,1717078237809,-156.71025931,0.00033298,4]
[328229425,1717078237819,-267.96249102,0.00033298,4]
[328229427,1717078237828,-2331.50342214,0.00033298,4]
[328229429,1717078237838,-489.06715365,0.00033298,4]
[328229431,1717078237848,-221.41228681,0.00033298,2]
[328229433,1717078237857,-2835.27016134,0.00033298,5]
[328229435,1717078237867,-887.01353833,0.00033298,4]
[328229437,1717078237877,-1446.95011064,0.00033298,30]
[328229439,1717078237886,-1250.35702426,0.00033298,4]
[328229441,1717078237896,-784.92211398,0.00033298,2]
[328229443,1717078237906,-266.30735074,0.00033298,4]
[328229445,1717078237916,-206.66142766,0.00033299,4]
[328229447,1717078237926,-300.28380741,0.00033299,4]
[328229449,1717078237936,-156.09933688,0.00033299,4]
[328229451,1717078237946,-156.31154072,0.00033299,4]
[328229453,1717078237956,-156.41777029,0.00033299,4]
[328229455,1717078237966,-151.0413497,0.00033299,2]
[328229457,1717078237977,-2278.10181398,0.00033299,2]
[328229459,1717078237987,-299.58469868,0.000333,5]
[328229461,1717078237997,-69334.75359516,0.000333,9]
[328229463,1717078238006,-50906.9544019,0.000333,5]
[328229465,1717078238020,-1024.53356218,0.000333,5]
[328229468,1717078238032,-16854.22899528,0.000333,5]
[328229470,1717078238044,-136405.99999988,0.000333,5]
[328229472,1717078238056,-2351.42112515,0.000333,5]
[328229476,1717078238081,-653.04,0.00031696,7]
[328229478,1717078238093,-443.7326138,0.00031696,7]
[328229480,1717078238105,-4167.9,0.00031696,7]
[328229502,1717078238306,172.21,0.00026431,120]
[328229550,1717078238875,-211.59,0.00033724,120]
[328229551,1717078239085,-5283.63303706,0.00015037,2]
[328229552,1717078239096,-5572.40323607,0.00015037,2]
[328229553,1717078239106,-251.95,0.00024146,3]
[328229554,1717078239116,-503.9,0.00025516,3]
[328229555,1717078239125,-1251.06,0.00031422,7]
[328229556,1717078239135,-749.71849429,0.00031542,7]
[328229557,1717078239145,-749.71849429,0.00031671,7]
[328229558,1717078239155,-1418.7873862,0.00031696,7]
[328229559,1717078239165,-1251.06,0.00031696,7]
[328229560,1717078239176,-749.71849429,0.00031962,7]
[328229561,1717078239186,-6683.46,0.0003197,7]
[328229562,1717078239197,-1251.06,0.0003197,7]
[328229563,1717078239207,-6683.46,0.00032244,7]
[328229564,1717078239217,-1251.06,0.00032244,7]
[328229565,1717078239228,-6683.46,0.00032518,7]
[328229566,1717078239240,-1251.06,0.00032518,7]
[328229567,1717078239250,-749.71849429,0.00032699,7]
[328229568,1717078239261,-6683.46,0.00032792,7]
[328229569,1717078239271,-1251.06,0.00032792,7]
[328229570,1717078239281,-1251.06,0.00033066,7]
[328229571,1717078239292,-6683.46,0.00033066,7]
[328229572,1717078239302,-16941.85304087,0.000333,5]
[328229573,1717078239317,-255179.44122722,0.000333,5]
[328229575,1717078239329,-7500.45083114,0.000333,5]
[328229579,1717078239365,-1499.999998,0.000333,5]
[328229581,1717078239378,-2544.9060667,0.000333,5]
[328229583,1717078239390,-1701.42867512,0.000333,5]
[328229657,1717078240609,-1835.17264575,0.000333,5]
[328229658,1717078240621,-10648.45612772,0.000333,5]
[328229659,1717078240632,-65907.76545844,0.000333,5]
[328229660,1717078241259,-90217.33614439,0.000333,5]
[328229661,1717078241453,-348.45226352,0.000333,5]
[328229662,1717078241466,-3266.48382435,0.000333,5]
[328229663,1717078241479,-6788.8,0.000333,5]
[328229664,1717078241493,-1516.92413267,0.000333,5]
[328229665,1717078241504,-3534.278748,0.000333,5]
[328229666,1717078241516,-381.49018136,0.000333,5]
[328229667,1717078241527,-569.49150001,0.000333,5]
[328229668,1717078241639,-401.91663883,0.000333,5]
[328229671,1717078241650,-17279.30569006,0.000333,5]
[328229718,1717078242794,-1872.33,0.00031422,7]
[328229722,1717078242804,-274.70748278,0.00031696,7]
[328229741,1717078242984,-460.40605468,0.00031696,7]
[328229742,1717078243064,-624.82759191,0.00031696,7]
[328229743,1717078243076,-512.38887063,0.00031696,7]
[328229744,1717078243086,-1872.33,0.0003197,7]
[328229745,1717078243095,-1769.34490537,0.000333,5]
[328229746,1717078243107,-17914.32062445,0.000333,5]
[328229747,1717078243147,-5670.40664392,0.000333,5]
[328229748,1717078243159,-925.21084893,0.000333,5]
[328229749,1717078243179,-6884.06303476,0.00033299,4]
[328229750,1717078243189,-2189917.02768955,0.000333,5]
[328229751,1717078243201,-9838.942021,0.000333,5]
[328229752,1717078243212,-3072.66844314,0.000333,5]
[328229753,1717078243224,-16718.0,0.000333,5]
[328229754,1717078243236,-2950.74916208,0.000333,5]
[328229755,1717078243498,-1872.33,0.00032244,7]
[328229756,1717078243508,-3537.95068312,0.000333,5]
[328229757,1717078243519,-1643.56498822,0.000333,5]
[328229758,1717078243531,-1000.1553635,0.000333,5]
[328229759,1717078243544,-1829.54648349,0.000333,5]
[328229760,1717078243555,-10597.324,0.000333,5]
[328229761,1717078243567,-65091.0768162,0.000333,5]
[328229766,1717078245928,-255.75787787,0.0001564,2]
[328229767,1717078245938,-1391.52958748,0.00032518,7]
[328229768,1717078246119,-480.80041252,0.00032518,7]
[328229769,1717078246129,-1872.33,0.00032792,7]
[328229770,1717078246139,-1872.33,0.00033066,7]
[328229771,1717078246150,-287.25106551,0.00033299,4]
[328229772,1717078246282,-2957.29199938,0.00033299,4]
[328229773,1717078246296,-13388.87089421,0.000333,5]
[328229774,1717078246308,-1776.3344768,0.000333,5]
[328229775,1717078246319,-1898.25000002,0.000333,5]
[328229776,1717078246345,-751.80430157,0.00029968,2]
[328229777,1717078246354,-1552.33040497,0.000333,5]
[328229778,1717078246367,-6802.0,0.000333,5]
[328229779,1717078246379,-265.67569066,0.000333,5]
[328229780,1717078246390,-699.27,0.000333,5]
[328229781,1717078246410,-691.03903521,0.00033299,4]
[328229782,1717078246422,-40.8406169,0.00033299,4]
[328229783,1717078246431,-535.00464103,0.000333,5]
[328229784,1717078246442,-896.01,0.000333,5]
[328229801,1717078495015,3000.0,0.00031,30]
[328229805,1717078750500,210.63,0.00029808,30]
[328229809,1717078877131,15989421.50026983,0.00014,2]
[328229810,1717078918523,347.00098087,0.00014,2]
[328229811,1717078934526,422.59837898,0.00014,2]
[328229812,1717078959964,163.9,0.00028074,120]
[328229813,1717078970614,621.0,0.0003,120]
[328229818,1717079231943,-1370.91615629,0.00015325,2]
[328229819,1717079231966,-452.55518761,0.00015326,2]
[328229820,1717079231991,-2604.0648705,0.00015327,2]
[328229830,1717079431985,-544.72756964,0.00017235,2]
[328229831,1717079431995,-1216.58199942,0.00017259,2]
[328229832,1717079432004,-155.0,0.00017259,2]
[328229833,1717079432014,-985.82,0.00017808,2]
[328229834,1717079432024,-401.61,0.00024513,2]
[328229835,1717079432034,-499.99,0.00024513,2]
[328229836,1717079432043,-18253.44,0.00025786,2]
[328229837,1717079432052,-5719.82,0.00025786,2]
[328229838,1717079432062,-299.99,0.00025786,12]
[328229839,1717079432071,-999.99,0.00025786,2]
[328229840,1717079432081,-4410.76,0.00026431,2]
[328229841,1717079432090,-401.61,0.00026777,2]
[328229842,1717079432099,-452.55518761,0.00027199,2]
[328229843,1717079432109,-417.0,0.000272,4]
[328229844,1717079432119,-200.0,0.00027663,2]
[328229845,1717079432129,-300.0,0.00028292,2]
[328229846,1717079432138,-306.79,0.00028439,2]
[328229847,1717079432148,-23900.0,0.00028689,2]
[328229848,1717079432158,-250.0,0.00028796,2]
[328229849,1717079432169,-401.61,0.00029041,2]
[328229850,1717079432179,-23900.0,0.00029197,2]
[328229851,1717079432188,-714.24731743,0.00029296,2]
[328229852,1717079432202,-167.84,0.00029297,2]
[328229853,1717079432211,-6181.85,0.00029373,2]
[328229854,1717079432221,-1226.063078,0.000295,2]
[328229855,1717079432231,-3218.41558,0.000295,2]
[328229856,1717079432242,-431.573424,0.000295,2]
[328229857,1717079432251,-200.36514059,0.00029659,2]
[328229858,1717079432261,-1839.094617,0.000298,2]
[328229859,1717079432270,-4827.623371,0.000298,2]
[328229860,1717079432280,-647.360136,0.000298,2]
[328229861,1717079432290,-226.23265054,0.00029967,3]
[328229862,1717079432301,-423.24973175,0.00029968,2]
[328229863,1717079432311,-665.63905674,0.00029968,2]
[328229864,1717079432320,-2452.126156,0.0003,2]
[328229865,1717079432329,-6436.831161,0.0003,2]
[328229866,1717079432338,-863.146848,0.0003,2]
[328229867,1717079432348,-421.87,0.00030089,2]
[328229868,1717079432358,-3065.157695,0.000302,2]
[328229869,1717079432367,-8046.038951,0.000302,2]
[328229870,1717079432376,-1078.93356,0.000302,2]
[328229872,1717079432386,-241.82,0.0003049,3]
[328229874,1717079432395,-725.48,0.0003049,3]
[328229876,1717079432405,-4291.220774,0.000305,2]
[328229878,1717079432414,-11264.454532,0.000305,2]
[328229880,1717079432423,-1510.506985,0.000305,2]
[328229881,1717079432433,-1000.0,0.00030652,2]
[328229882,1717079432442,-4904.252313,0.000308,2]
[328229883,1717079432452,-12873.662323,0.000308,2]
[328229884,1717079432461,-1726.293697,0.000308,2]
[328229885,1717079432471,-1837.33448,0.000309,2]
[328229886,1717079432480,-304.0,0.00031,8]
[328229887,1717079432490,-200.0,0.00031121,2]
[328229888,1717079432500,-306.79,0.00031179,2]
[328229889,1717079432511,-356.71107853,0.00031204,2]
[328229890,1717079432520,-1628.7007602,0.00031205,10]
[328229891,1717079432530,-12320.6937,0.00031247,2]
[328229892,1717079432540,-401.61,0.00031305,2]
[328229893,1717079432549,-48300.2025,0.00031347,2]
[328229894,1717079432558,-1000.0,0.00031347,2]
[328229895,1717079432568,-6183.24679352,0.0003142,4]
[328229896,1717079432577,-1628.70076017,0.00031427,10]
[328229897,1717079432587,-185.56099156,0.00031519,7]
[328229898,1717079432596,-1628.70076017,0.00031648,10]
[328229899,1717079432605,-172.66,0.00031768,2]
[328229900,1717079432615,-185.56099156,0.00031796,7]
[328229901,1717079432624,-153.58164362,0.00031828,7]
[328229902,1717079432633,-483.64,0.0003186,3]
[328229903,1717079432644,-1628.70076017,0.0003187,10]
[328229904,1717079432654,-649.75602838,0.00031976,7]
[328229905,1717079432664,-649.75602838,0.00032005,7]
[328229906,1717079432674,-2502.45,0.00032012,2]
[328229907,1717079432684,-4463.61,0.00032081,2]
[328229908,1717079432694,-25000.0,0.00032091,2]
[328229909,1717079432704,-1628.70076017,0.00032092,10]
[328229910,1717079432714,-185.56099156,0.00032092,7]
[328229911,1717079432723,-5000.0,0.00032147,2]
[328229912,1717079432733,-25000.0,0.00032191,2]
[328229913,1717079432743,-5000.0,0.00032207,2]
[328229914,1717079432753,-216.05970431,0.00032213,2]
[328229915,1717079432765,-4463.61,0.00032224,2]
[328229916,1717079432774,-5000.0,0.00032234,2]
[328229917,1717079432783,-166.49966667,0.00032282,7]
[328229918,1717079432792,-12500.0,0.00032306,2]
[328229919,1717079432981,-1628.70076017,0.00032313,10]
[328229920,1717079432991,-649.75602838,0.00032322,7]
[328229921,1717079432999,-12500.0,0.00032327,2]
[328229922,1717079433011,-216.05970429,0.00032354,2]
[328229923,1717079433019,-5000.0,0.00032357,2]
[328229924,1717079433029,-5000.0,0.00032359,2]
[328229925,1717079433039,-5000.0,0.00032398,2]
[328229926,1717079433049,-153.05958922,0.00032427,7]
[328229927,1717079433058,-5000.0,0.00032435,2]
[328229928,1717079433067,-5019.61812,0.00032463,30]
[328229929,1717079433076,-153.03469475,0.00032474,7]
[328229930,1717079433086,-216.05970429,0.00032495,2]
[328229931,1717079433095,-2513.15,0.00032515,2]
[328229932,1717079433104,-1628.70076017,0.00032535,10]
[328229933,1717079433113,-2502.45,0.00032544,2]
[328229934,1717079433122,-4463.61,0.00032559,2]
[328229935,1717079433131,-5000.0,0.00032569,2]
[328229936,1717079433140,-216.05970429,0.00032636,2]
[328229937,1717079433149,-5000.0,0.00032722,2]
[328229938,1717079433158,-5000.0,0.00032747,2]
[328229939,1717079433167,-5000.0,0.00032752,2]
[328229940,1717079433176,-1628.70076017,0.00032757,10]
[328229941,1717079433186,-216.05970429,0.00032777,2]
[328229942,1717079433195,-3501.74,0.00032849,2]
[328229943,1717079433203,-2500.0,0.00032875,2]
[328229944,1717079433212,-3442.17,0.00032876,11]
[328229945,1717079433221,-726.82,0.00032876,11]
[328229946,1717079433230,-18298.11,0.00032877,2]
[328229947,1717079433241,-1000.0,0.000329,2]
[328229948,1717079433250,-2000.0,0.000329,2]
[328229949,1717079433260,-446.0,0.000329,2]
[328229950,1717079433269,-1054.0,0.000329,2]
[328229951,1717079433279,-711.76989879,0.000329,2]
[328229952,1717079433287,-326.87470484,0.000329,2]
[328229953,1717079433296,-216.05970429,0.00032918,2]
[328229954,1717079433305,-2500.0,0.00032944,2]
[328229955,1717079433314,-1940.72876,0.0003296,2]
[328229956,1717079433324,-194.81150259,0.00032966,2]
[328229957,1717079433333,-185.56099156,0.00032968,7]
[328229958,1717079433342,-1628.70076017,0.00032978,10]
[328229959,1717079433352,-4463.61,0.00032985,2]
[328229960,1717079433361,-2000.0,0.00032986,30]
[328229961,1717079433370,-2503.64,0.00032995,2]
[328229962,1717079433379,-2503.64,0.00032997,2]
[328229963,1717079433389,-723.393371,0.00033,2]
[328229964,1717079433398,-765.75,0.00033,4]
[328229965,1717079433407,-649.75602838,0.00033019,7]
[328229966,1717079433417,-500.0,0.00033034,10]
[328229967,1717079433429,-216.05970429,0.00033059,2]
[328229968,1717079433439,-381.50348138,0.00033088,2]
[328229969,1717079433448,-7051.8881539,0.000331,2]
[328229970,1717079433460,-128.9957601,0.000331,2]
[328229971,1717079433470,-153.03469475,0.00033138,7]
[328229972,1717079433478,-26.85167952,0.00033157,2]
[328229973,1717079433490,-3453.58111738,0.00033157,2]
[328229974,1717079433516,-410.51505764,0.00017234,2]
[328229975,1717079433526,-2319.5672031,0.00033157,2]
[328229976,1717079433535,-1013.27437444,0.00033166,2]
[328229977,1717079433547,-4786.72562556,0.00033166,2]
[328229978,1717079433557,-5800.0,0.00033175,2]
[328229979,1717079433567,-5800.0,0.00033183,2]
[328229980,1717079433577,-4463.61,0.00033189,2]
[328229981,1717079433587,-5800.0,0.00033192,2]
[328229982,1717079433597,-200.86465462,0.00033197,6]
[328229983,1717079433607,-200.86465461,0.00033198,6]
[328229984,1717079433617,-563.92259555,0.00033198,5]
[328229985,1717079433627,-200.86465461,0.00033198,6]
[328229986,1717079433637,-563.92259548,0.00033198,5]
[328229987,1717079433647,-563.92259548,0.00033198,5]
[328229988,1717079433656,-563.92259548,0.00033199,5]
[328229989,1717079433666,-563.92259548,0.00033199,5]
[328229990,1717079433675,-563.92259548,0.00033199,5]
[328229991,1717079433684,-3442.17,0.00033199,11]
[328229992,1717079433694,-4449.36292153,0.00033199,2]
[328229993,1717079433703,-563.92259548,0.00033199,5]
[328229994,1717079433713,-563.92259548,0.00033199,5]
[328229995,1717079433722,-563.92259548,0.00033199,5]
[328229996,1717079433732,-4449.36292151,0.000332,2]
[328229997,1717079433741,-563.92259548,0.000332,5]
[328229998,1717079433750,-563.92259548,0.000332,5]
[328229999,1717079433762,-5800.0,0.000332,2]
[328230000,1717079433771,-563.92259548,0.000332,5]
[328230001,1717079433781,-1628.70076017,0.000332,10]
[328230002,1717079433790,-150.89339021,0.000332,7]
[328230003,1717079433799,-150.89339021,0.000332,7]
[328230004,1717079433808,-150.89339021,0.000332,7]
[328230005,1717079433818,-150.89339021,0.000332,7]
[328230006,1717079433827,-150.89339021,0.000332,7]
[328230007,1717079433837,-150.89339021,0.000332,7]
[328230008,1717079433849,-150.89339021,0.000332,7]
[328230009,1717079433859,-150.89339021,0.000332,7]
[328230010,1717079433868,-150.89339021,0.000332,7]
[328230011,1717079433878,-150.89339021,0.000332,7]
[328230012,1717079433887,-150.89339021,0.000332,7]
[328230013,1717079433898,-150.89339021,0.000332,7]
[328230014,1717079433909,-150.89339021,0.000332,7]
[328230015,1717079433918,-151.39,0.000332,7]
[328230016,1717079433929,-422.57649259,0.000332,7]
[328230017,1717079433939,-422.57649259,0.000332,7]
[328230018,1717079433950,-422.57649259,0.000332,7]
[328230019,1717079433960,-422.57649259,0.000332,7]
[328230020,1717079433970,-422.57649259,0.000332,7]
[328230021,1717079433979,-422.57649259,0.000332,7]
[328230022,1717079433989,-422.57649259,0.000332,7]
[328230023,1717079433998,-422.57649259,0.000332,7]
[328230024,1717079434008,-422.57649259,0.000332,7]
[328230025,1717079434019,-422.57649259,0.000332,7]
[328230026,1717079434028,-422.57649259,0.000332,7]
[328230027,1717079434037,-422.57649259,0.000332,7]
[328230028,1717079434047,-422.57649259,0.000332,7]
[328230029,1717079434056,-422.57649259,0.000332,7]
[328230030,1717079434067,-422.57649259,0.000332,7]
[328230031,1717079434076,-422.57649259,0.000332,7]
[328230032,1717079434085,-422.57649259,0.000332,7]
[328230033,1717079434094,-422.57649259,0.000332,7]
[328230034,1717079434103,-422.57649259,0.000332,7]
[328230035,1717079434113,-423.07,0.000332,7]
[328230036,1717079434122,-184.72894547,0.000332,7]
[328230037,1717079434131,-184.72894547,0.000332,7]
[328230038,1717079434140,-185.22,0.000332,7]
[328230039,1717079434150,-158.44623897,0.000332,7]
[328230040,1717079434159,-158.44623897,0.000332,7]
[328230041,1717079434168,-158.44623897,0.000332,7]
[328230042,1717079434177,-158.44623897,0.000332,7]
[328230043,1717079434186,-158.44623897,0.000332,7]
[328230044,1717079434195,-158.44623897,0.000332,7]
[328230045,1717079434205,-158.44623897,0.000332,7]
[328230046,1717079434214,-1741.57366589,0.000332,2]
[328230047,1717079434226,-2707.78925562,0.000332,2]
[328230048,1717079434235,-158.44623897,0.000332,7]
[328230049,1717079434246,-158.44623897,0.000332,7]
[328230050,1717079434255,-158.44623897,0.000332,7]
[328230051,1717079434266,-158.44623897,0.000332,7]
[328230052,1717079434275,-158.44623897,0.000332,7]
[328230053,1717079434285,-158.44623897,0.000332,7]
[328230054,1717079434294,-158.94,0.000332,7]
[328230055,1717079434303,-184.72,0.000332,7]
[328230056,1717079434313,-155.33,0.000332,7]
[328230057,1717079434322,-216.05970429,0.000332,2]
[328230058,1717079434332,-4598.76533425,0.00033268,4]
[328230059,1717079434341,-152.85,0.00033287,2]
[328230060,1717079434351,-152.85,0.00033287,2]
[328230061,1717079434361,-152.85,0.00033288,2]
[328230062,1717079434370,-152.85,0.00033288,2]
[328230063,1717079434380,-1808.78627266,0.00033294,2]
[328230064,1717079434389,-1808.78627266,0.00033295,2]
[328230065,1717079434399,-441.26108456,0.00033296,11]
[328230074,1717079438033,-1754.244565,0.00025656,2]
[328230075,1717079438043,-285.55891544,0.00033296,11]
[328230076,1717079438052,-500.0,0.00033296,11]
[328230077,1717079438061,-500.0,0.00033296,11]
[328230078,1717079438070,-361.54969826,0.00033296,11]
[328230079,1717079438082,-138.45030174,0.00033296,11]
[328230080,1717079438092,-1808.78627266,0.00033296,2]
[328230081,1717079438102,-155.08414803,0.00033297,4]
[328230082,1717079438112,-500.0,0.00033297,2]
[328230083,1717079438121,-268.359999,0.00033297,2]
[328230084,1717079438131,-161.34970624,0.00033297,2]
[328230085,1717079438140,-500.0,0.00033297,11]
[328230086,1717079438149,-305.82,0.00033297,11]
[328230087,1717079438159,-167.71554089,0.00033297,11]
[328230088,1717079438170,-332.28445911,0.00033297,11]
[328230089,1717079438180,-421.45608344,0.00033297,11]
[328230090,1717079438189,-243.80472807,0.00033297,11]
[328230091,1717079438201,-256.19527193,0.00033297,11]
[328230092,1717079438210,-500.0,0.00033297,11]
[328230093,1717079438220,-419.22,0.00033297,11]
[328230094,1717079438230,-189.49187919,0.00033297,11]
[328230095,1717079438239,-322.73073539,0.00033297,11]
[328230096,1717079438250,-3085.09,0.00033297,11]
[328230097,1717079438259,-3085.09,0.00033297,11]
[328230098,1717079438272,-3085.09,0.00033297,11]
[328230099,1717079438282,-153.83026263,0.00033297,11]
[328230100,1717079438291,-13630.44,0.00033297,11]
[328230101,1717079438301,-13630.44,0.00033297,11]
[328230102,1717079438310,-13630.44,0.00033297,11]
[328230103,1717079438319,-500.0,0.00033297,11]
[328230104,1717079438328,-500.0,0.00033297,11]
[328230105,1717079438337,-1177.18,0.00033297,11]
[328230106,1717079438347,-1177.18,0.00033297,11]
[328230107,1717079438358,-1177.18,0.00033297,11]
[328230108,1717079438368,-3442.17,0.00033297,11]
[328230109,1717079438378,-4371.46,0.00033297,11]
[328230110,1717079438388,-4371.46,0.00033297,11]
[328230111,1717079438398,-726.98,0.00033297,11]
[328230112,1717079438408,-4371.46,0.00033297,11]
[328230113,1717079438418,-726.98,0.00033297,11]
[328230114,1717079438427,-726.98,0.00033297,11]
[328230115,1717079438438,-1246.26126998,0.00033297,4]
[328230116,1717079438447,-3222.15,0.00033297,11]
[328230117,1717079438456,-3222.15,0.00033297,11]
[328230118,1717079438466,-3222.15,0.00033297,11]
[328230119,1717079438476,-503.25013206,0.00033297,11]
[328230120,1717079438486,-3558.98,0.00033297,11]
[328230121,1717079438496,-3558.98,0.00033297,11]
[328230122,1717079438505,-3558.98,0.00033297,11]
[328230123,1717079438517,-500.0,0.00033297,11]
[328230124,1717079438526,-500.0,0.00033297,11]
[328230125,1717079438536,-500.0,0.00033297,11]
[328230126,1717079438545,-556.45,0.00033297,11]
[328230127,1717079438554,-556.45,0.00033297,11]
[328230128,1717079438564,-7615.99,0.00033297,11]
[328230129,1717079438573,-556.45,0.00033297,11]
[328230130,1717079438582,-7615.99,0.00033297,11]
[328230131,1717079438592,-7615.99,0.00033297,11]
[328230132,1717079438601,-500.0,0.00033297,11]
[328230133,1717079438611,-5036.02,0.00033297,11]
[328230134,1717079438621,-5036.02,0.00033297,11]
[328230135,1717079438630,-5036.02,0.00033297,11]
[328230136,1717079438639,-739.09,0.00033297,11]
[328230137,1717079438649,-739.09,0.00033297,11]
[328230138,1717079438658,-739.09,0.00033297,11]
[328230139,1717079438668,-13675.17,0.00033297,11]
[328230140,1717079438677,-13675.17,0.00033297,11]
[328230141,1717079438687,-13675.17,0.00033297,11]
[328230142,1717079438697,-2503.88,0.00033297,11]
[328230143,1717079438706,-2503.88,0.00033297,11]
[328230144,1717079438716,-2503.88,0.00033297,11]
[328230145,1717079438725,-628.09,0.00033297,11]
[328230146,1717079438735,-628.09,0.00033297,11]
[328230147,1717079438744,-628.09,0.00033297,11]
[328230148,1717079438754,-682.81,0.00033297,11]
[328230149,1717079438766,-682.81,0.00033297,11]
[328230150,1717079438775,-682.81,0.00033297,11]
[328230151,1717079438784,-2402.16,0.00033297,11]
[328230152,1717079438793,-2402.16,0.00033297,11]
[328230153,1717079438802,-2402.16,0.00033297,11]
[328230154,1717079438811,-500.0,0.00033297,11]
[328230155,1717079438821,-500.0,0.00033297,11]
[328230156,1717079438831,-500.0,0.00033297,11]
[328230157,1717079438841,-500.0,0.00033297,11]
[328230158,1717079438851,-448.06593715,0.00033297,11]
[328230159,1717079438863,-5521.07,0.00033297,11]
[328230160,1717079438873,-5521.07,0.00033297,11]
[328230161,1717079438883,-5521.07,0.00033297,11]
[328230162,1717079438895,-385.56020184,0.00033297,11]
[328230163,1717079438904,-500.0,0.00033297,11]
[328230164,1717079438913,-158.68,0.00033297,11]
[328230165,1717079438923,-577.81608564,0.00033297,11]
[328230166,1717079438935,-500.0,0.00033297,11]
[328230167,1717079438945,-3337.34,0.00033297,11]
[328230168,1717079438955,-3337.34,0.00033297,11]
[328230169,1717079438965,-3337.34,0.00033297,11]
[328230170,1717079438974,-3337.34,0.00033297,11]
[328230171,1717079438983,-3337.34,0.00033297,11]
[328230172,1717079438992,-3337.34,0.00033297,11]
[328230173,1717079439002,-4347.21,0.00033297,11]
[328230174,1717079439012,-4347.21,0.00033297,11]
[328230175,1717079439023,-500.0,0.00033297,11]
[328230176,1717079439033,-4347.21,0.00033297,11]
[328230177,1717079439045,-5203.14,0.00033297,11]
[328230178,1717079439058,-5203.14,0.00033297,11]
[328230179,1717079439068,-353.83706215,0.00033297,11]
[328230180,1717079439078,-5203.14,0.00033297,11]
[328230181,1717079439088,-5203.14,0.00033297,11]
[328230182,1717079439098,-5203.14,0.00033297,11]
[328230183,1717079439108,-5203.14,0.00033297,11]
[328230184,1717079439118,-500.0,0.00033297,11]
[328230185,1717079439128,-212.71925638,0.00033297,11]
[328230186,1717079439138,-536.79288485,0.00033297,11]
[328230187,1717079439148,-4508.59,0.00033297,11]
[328230188,1717079439164,-4508.59,0.00033297,11]
[328230189,1717079439316,-4508.59,0.00033297,11]
[328230190,1717079439327,-500.0,0.00033297,11]
[328230191,1717079439337,-500.0,0.00033297,11]
[328230192,1717079439347,-244.64368282,0.00033297,11]